fUST/lending_fUST_20260114
["ID","MTS","AMOUNT","RATE_DAILY","PERIOD"]
[401718442,1768344650976,-250.0,0.00013967,2]
[401718444,1768344650985,-270.53215643,0.00013972,2]
[401718446,1768344650995,-817.0,0.00013972,2]
[401718448,1768344651004,-500.0,0.00013972,2]
[401718450,1768344651013,-500.0,0.00013972,2]
[401718452,1768344651022,-500.0,0.00014,2]
[401718454,1768344651031,-151.0,0.00014,2]
[401718455,1768344651042,-817.0,0.00014109,2]
[401718457,1768344651051,-500.0,0.00014109,2]
[401718459,1768344651060,-236.85255522,0.00014109,2]
[401718461,1768344651069,-319.0,0.0001419,2]
[401718463,1768344651078,-500.0,0.0001419,2]
[401718465,1768344651088,-281.0,0.000142,2]
[401718467,1768344651099,-514.84070869,0.00014217,2]
[401718469,1768344651108,-635.31388914,0.00014217,2]
[401718471,1768344651117,-600.0,0.00014221,2]
[401718473,1768344651126,-817.0,0.00014246,2]
[401718474,1768344651135,-500.0,0.00014246,2]
[401718476,1768344651148,-584.75401831,0.00014247,2]
[401718478,1768344651157,-530.47874425,0.00014247,2]
[401718480,1768344651166,-1000.0,0.00014247,2]
[401718482,1768344651175,-1000.0,0.00014247,2]
[401718484,1768344651184,-1000.0,0.00014247,2]
[401718486,1768344651194,-168.0,0.00014326,2]
[401718488,1768344651203,-1500.0,0.00014368,2]
[401718490,1768344651213,-500.0,0.00014368,2]
[401718492,1768344651221,-1500.0,0.00014368,2]
[401718494,1768344651231,-3883.03554087,0.0001437,2]
[401718496,1768344651240,-817.0,0.00014383,2]
[401718498,1768344651249,-500.0,0.00014383,2]
[401718500,1768344651258,-586.80887338,0.00014418,2]
[401718502,1768344651267,-168.0,0.00014422,2]
[401718504,1768344651276,-2904.54102313,0.00014498,2]
[401718506,1768344651284,-500.0,0.000145,2]
[401718508,1768344651293,-5000.0,0.0001451,2]
[401718510,1768344651302,-817.0,0.0001452,2]
[401718512,1768344651312,-500.0,0.0001452,2]
[401718514,1768344651320,-222.73,0.00014521,3]
[401718515,1768344651329,-196.40563951,0.00014542,2]
[401718517,1768344651338,-151.0,0.000146,2]
[401718519,1768344651347,-489.95256113,0.0001461,2]
[401718520,1768344651356,-319.0,0.00014634,2]
[401718521,1768344651365,-168.0,0.00014656,2]
[401718522,1768344651375,-817.0,0.00014657,2]
[401718523,1768344651384,-500.0,0.00014657,2]
[401718524,1768344651396,-319.0,0.00014682,2]
[401718525,1768344651406,-533.88981491,0.00014765,2]
[401718526,1768344651415,-900.0,0.00014768,2]
[401718527,1768344651424,-168.0,0.00014776,2]
[401718528,1768344651434,-817.0,0.00014794,2]
[401718529,1768344651443,-500.0,0.00014794,2]
[401718530,1768344651452,-1500.0,0.00014795,2]
[401718531,1768344651462,-447.42957615,0.00014795,2]
[401718532,1768344651471,-1500.0,0.00014795,2]
[401718533,1768344651481,-168.0,0.00014814,2]
[401718534,1768344651490,-168.0,0.00014823,2]
[401718535,1768344651499,-828.40846933,0.00014838,2]
[401718536,1768344651509,-1105.51773726,0.00014867,2]
[401718537,1768344651518,-168.0,0.00014898,2]
[401718538,1768344651527,-2000.0,0.00014916,2]
[401718539,1768344651536,-2000.0,0.00014916,2]
[401718540,1768344651545,-817.0,0.00014931,2]
[401718541,1768344651555,-500.0,0.00014931,2]
[401718542,1768344651564,-2344.88825802,0.00014937,2]
[401718543,1768344651573,-168.0,0.00014957,2]
[401718544,1768344651582,-2005.96129758,0.00015,2]
[401718545,1768344651590,-1372.36518407,0.00015,3]
[401718546,1768344651600,-2791.20466604,0.00015,7]
[401718547,1768344651609,-2000.0,0.00015,2]
[401718548,1768344651619,-718.0,0.00015,2]
[401718549,1768344651627,-484.25704592,0.00015,2]
[401718550,1768344651636,-500.0,0.00015,2]
[401718551,1768344651647,-196.40563951,0.0001501,2]
[401718552,1768344651655,-817.0,0.00015068,2]
[401718553,1768344651664,-500.0,0.00015068,2]
[401718554,1768344651674,-171.624047,0.00015068,2]
[401718555,1768344651687,-168.0,0.00015083,2]
[401718556,1768344651697,-168.0,0.00015089,2]
[401718557,1768344651706,-154.91,0.000151,2]
[401718558,1768344651715,-319.0,0.00015145,2]
[401718560,1768344651725,-168.0,0.00015184,2]
[401718561,1768344651734,-151.0,0.000152,2]
[401718562,1768344651742,-989.85278462,0.000152,2]
[401718564,1768344651751,-817.0,0.00015205,2]
[401718565,1768344651761,-269.92085753,0.00015205,2]
[401718566,1768344651769,-720.0,0.00015256,2]
[401718568,1768344651778,-9876.70539658,0.00015303,2]
[401718570,1768344651788,-553.64373807,0.00015313,2]
[401718572,1768344651797,-517.35618066,0.00015316,2]
[401718574,1768344651805,-817.0,0.00015342,2]
[401718576,1768344651814,-2000.0,0.00015342,2]
[401718578,1768344651823,-2000.0,0.00015342,2]
[401718580,1768344651832,-3310.32024344,0.00015359,2]
[401718582,1768344651841,-168.0,0.00015364,2]
[401718584,1768344651850,-728.0,0.00015391,2]
[401718586,1768344651859,-728.0,0.00015391,2]
[401718588,1768344651869,-184.26962288,0.00015443,8]
[401718590,1768344651878,-168.0,0.00015457,2]
[401718592,1768344651887,-2500.0,0.00015464,2]
[401718594,1768344651896,-1821.06911742,0.00015464,2]
[401718597,1768344651906,-817.0,0.00015479,2]
[401718598,1768344651914,-150.15,0.000155,2]
[401718600,1768344651923,-151.3,0.000155,2]
[401718602,1768344651933,-150.95,0.000156,2]
[401718604,1768344651941,-168.0,0.00015614,2]
[401718606,1768344651950,-817.0,0.00015616,2]
[401718609,1768344651960,-1041.66666667,0.00015726,2]
[401718611,1768344651969,-817.0,0.00015753,2]
[401718613,1768344651978,-155.06,0.000158,2]
[401718615,1768344651987,-651.16,0.000158,2]
[401718616,1768344651996,-151.0,0.000158,2]
[401718619,1768344652005,-574.12855637,0.00015861,2]
[401718621,1768344652015,-817.0,0.0001589,2]
[401718622,1768344652023,-2500.0,0.0001589,2]
[401718624,1768344652032,-2500.0,0.0001589,2]
[401718627,1768344652042,-1000.0,0.00016,2]
[401718629,1768344652051,-151.0,0.00016,2]
[401718630,1768344652059,-3000.0,0.00016012,2]
[401718633,1768344652068,-184.26962288,0.00016019,10]
[401718634,1768344652077,-817.0,0.00016027,2]
[401718637,1768344652086,-817.0,0.00016164,2]
[401718638,1768344652095,-150.15,0.000162,2]
[401718640,1768344652104,-151.3,0.000162,2]
[401718643,1768344652114,-651.16,0.000163,2]
[401718645,1768344652123,-832.87116365,0.00016301,2]
[401718647,1768344652132,-151.0,0.000164,2]
[401718648,1768344652140,-544.28202857,0.00016409,2]
[401718651,1768344652150,-151.0,0.00016438,2]
[401718653,1768344652161,-151.0,0.00016438,2]
[401718655,1768344652170,-151.0,0.00016438,2]
[401718657,1768344652179,-151.0,0.00016438,2]
[401718659,1768344652188,-151.0,0.00016438,2]
[401718661,1768344652198,-151.0,0.00016438,2]
[401718663,1768344652210,-165.500742,0.00016438,2]
[401718665,1768344652219,-151.0,0.00016438,2]
[401718667,1768344652228,-151.0,0.00016438,2]
[401718669,1768344652238,-151.0,0.00016438,2]
[401718671,1768344652247,-151.0,0.00016438,2]
[401718673,1768344652256,-201.304491,0.00016438,2]
[401718675,1768344652265,-200.0,0.00016438,2]
[401718677,1768344652275,-3000.0,0.00016438,2]
[401718679,1768344652284,-3000.0,0.00016438,2]
[401718681,1768344652293,-728.0,0.00016507,2]
[401718683,1768344652302,-3500.0,0.0001656,2]
[401718685,1768344652312,-184.26962288,0.00016595,11]
[401718687,1768344652322,-427.0,0.00016597,2]
[401718689,1768344652331,-564.6910874,0.0001661,2]
[401718691,1768344652340,-196.84669383,0.00016642,2]
[401718693,1768344652349,-629.0,0.00016729,2]
[401718695,1768344652358,-1367.0,0.00016729,2]
[401718697,1768344652367,-2147.0,0.00016729,2]
[401718699,1768344652377,-864.0,0.00016782,2]
[401718701,1768344652386,-651.16,0.000168,2]
[401718703,1768344652397,-150.15,0.000169,2]
[401718716,1768344652511,-150.95,0.000169,2]
[401718719,1768344652520,-151.3,0.000169,2]
[401718721,1768344652529,-160.34,0.00016966,2]
[401718722,1768344652538,-3500.0,0.00016986,2]
[401718725,1768344652547,-2961.92726002,0.00016986,2]
[401718726,1768344652557,-10000.0,0.00017,2]
[401718729,1768344652566,-155.06,0.00017,2]
[401718730,1768344652575,-1000.0,0.00017,2]
[401718732,1768344652584,-171.46,0.0001701,2]
[401718734,1768344652594,-331.20831593,0.00017015,2]
[401718737,1768344652604,-1648.69625825,0.00017108,2]
[401718739,1768344652613,-184.26962288,0.00017172,12]
[401718741,1768344652623,-163.29809862,0.00017195,2]
[401718742,1768344652632,-349.52413469,0.00017265,2]
[401718745,1768344652643,-651.16,0.000173,2]
[401718747,1768344652652,-1706.84498947,0.00017421,7]
[401718749,1768344652662,-400.0,0.00017534,2]
[401718751,1768344652673,-4000.0,0.00017534,2]
[401718753,1768344652686,-150.15,0.000176,2]
[401718755,1768344652695,-151.3,0.000176,2]
[401718757,1768344652704,-154.91,0.000176,2]
[401718759,1768344652715,-184.26962288,0.00017748,14]
[401718761,1768344652725,-651.16,0.000178,2]
[401718763,1768344652734,-728.0,0.000179,2]
[401718765,1768344652744,-1000.0,0.00018,2]
[401718767,1768344652757,-63761.73730551,0.00018,2]
[401718769,1768344652766,-19808.07541361,0.00018,5]
[401718775,1768344652810,-1005.0,0.00018,5]
[401718785,1768344652900,-958.85938964,0.00018,5]
[401718787,1768344652911,-420.0,0.00018,5]
[401718822,1768344653230,503.49204028,0.00030136,120]
[401719629,1768344661412,500.0,0.00012572,2]
[401719638,1768344661491,500.0,0.00012572,2]
[401719646,1768344661559,500.0,0.00012572,2]
[401719655,1768344661629,500.0,0.00012572,2]
[401719664,1768344661708,500.0,0.00012572,2]
[401719673,1768344661789,500.0,0.00012572,2]
[401719678,1768344661871,196.59593752,0.00012572,2]
[401719698,1768344662183,500.0,0.00030136,120]
[401719725,1768344662428,203.1,0.00030136,120]
[401719885,1768344664010,150.79,8.383e-05,2]
[401719904,1768344664446,169.64,8.683e-05,2]
[401720597,1768344677727,500.0,0.00030136,120]
[401720598,1768344693891,-2570.33183704,0.0001305,2]
[401720599,1768344719543,500.0,0.00030136,120]
[401720600,1768344792222,423.22234829,0.00030136,120]
[401720601,1768344795074,4529.66816296,0.00012649,2]
[401720603,1768344900974,500.0,0.00030136,120]
[401720604,1768344901227,155.27,0.00030136,120]
[401720605,1768344934594,352.8,0.00012572,2]
[401720606,1768344934679,298.14996075,0.00012572,2]
[401720607,1768344947758,500.0,0.00030136,120]
[401720608,1768344954638,509.31475435,0.00030136,120]
[401720609,1768345049482,10000.01,0.00012126,2]
[401720610,1768345049699,10000.01,0.00012126,2]
[401720611,1768345049776,10000.01,0.00012126,2]
[401720612,1768345049848,9622.265736,0.00012126,2]
[401720617,1768345204204,377.744264,5e-05,2]
[401720618,1768345204276,614.735736,5e-05,2]
[401720619,1768345204631,992.48,5.5e-05,2]
[401720620,1768345205161,992.48,6e-05,2]
[401720621,1768345205706,992.48,6.5e-05,2]
[401720622,1768345206229,992.48,7.1e-05,2]
[401720623,1768345206767,992.48,7.6e-05,2]
[401720624,1768345207216,992.48,8.1e-05,2]
[401720625,1768345207685,992.48,8.6e-05,2]
[401720626,1768345208217,992.48,9.1e-05,2]
[401720627,1768345208745,992.48,9.6e-05,2]
[401720628,1768345209191,452.954264,0.000101,2]
[401720629,1768345209263,539.525736,0.000101,2]
[401720630,1768345209742,992.48,0.000106,2]
[401720631,1768345210182,992.48,0.000112,2]
[401720632,1768345210681,992.48,0.000117,2]
[401720633,1768345211232,992.48,0.000122,2]
[401720638,1768345365264,213.0939551,0.00011801,2]
[401720639,1768345397125,-599.0,0.00012648,2]
[401720640,1768345397196,-300.0,0.00012648,2]
[401720641,1768345397263,-419.87367073,0.00012648,2]
[401720642,1768345415166,-1942.9380825,0.00012649,2]
[401720643,1768345418199,-10000.01,0.00012649,2]
[401720696,1768345832228,-3527.40375454,0.00012649,2]
[401720698,1768345832237,-599.0,0.00012649,2]
[401720700,1768345832247,-418.75579504,0.00012662,2]
[401720702,1768345832256,-992.48,0.000127,2]
[401720704,1768345832266,-234.84854072,0.00012704,2]
[401720706,1768345832275,-300.0,0.00012897,2]
[401720708,1768345832284,-27270.10285009,0.00012898,2]
[401720710,1768345832293,-500.0,0.00012898,2]
[401720712,1768345832302,-388.58715078,0.00012898,2]
[401720714,1768345832311,-500.0,0.00012898,2]
[401720716,1768345832321,-500.0,0.00012898,2]
[401720718,1768345832330,-500.0,0.00012898,2]
[401720720,1768345832339,-500.0,0.00012898,2]
[401720722,1768345832349,-500.0,0.00012898,2]
[401720724,1768345832358,-343.47817082,0.00012898,2]
[401720726,1768345832368,-500.0,0.00012898,2]
[401720728,1768345832377,-500.0,0.00012898,2]
[401720730,1768345832386,-500.0,0.00012898,2]
[401720732,1768345832395,-500.0,0.00012898,2]
[401720734,1768345832405,-500.0,0.00012898,2]
[401720736,1768345832414,-500.0,0.00012898,2]
[401720738,1768345832423,-500.0,0.00012898,2]
[401720740,1768345832432,-500.0,0.00012898,2]
[401720742,1768345832441,-287.94099148,0.00012898,2]
[401720744,1768345832450,-500.0,0.00012898,2]
[401720746,1768345832460,-500.0,0.00012898,2]
[401720748,1768345832469,-500.0,0.00012898,2]
[401720750,1768345832479,-500.0,0.00012898,2]
[401720752,1768345832488,-46.10872565,0.00012898,2]
[401721115,1768345838499,-453.89127435,0.00012898,2]
[401721116,1768345838508,-500.0,0.00012898,2]
[401721117,1768345838518,-500.0,0.00012898,2]
[401721118,1768345838527,-380.62512365,0.00012898,2]
[401721279,1768345840528,-119.37487635,0.00012898,2]
[401721281,1768345840537,-500.0,0.00012898,2]
[401721283,1768345840547,-428.65171728,0.00012898,2]
[401721285,1768345840556,-500.0,0.00012898,2]
[401721286,1768345840566,-500.0,0.00012898,2]
[401721287,1768345840575,-500.0,0.00012898,2]
[401721288,1768345840585,-500.0,0.00012898,2]
[401721289,1768345840595,-500.0,0.00012898,2]
[401721290,1768345840605,-500.0,0.00012898,2]
[401721291,1768345840617,-500.0,0.00012898,2]
[401721292,1768345840629,-500.0,0.00012898,2]
[401721293,1768345840639,-261.21551016,0.00012898,2]
[401721294,1768345840649,-500.0,0.00012898,2]
[401721295,1768345840659,-500.0,0.00012898,2]
[401721296,1768345840669,-264.21345445,0.00012898,2]
[401721297,1768345840679,-250.0,0.00012898,2]
[401721298,1768345840689,-500.0,0.00012898,2]
[401721299,1768345840699,-500.0,0.00012898,2]
[401721300,1768345840708,-274.23718174,0.00012898,2]
[401721301,1768345840717,-260.18861389,0.00012898,2]
[401721302,1768345840727,-500.0,0.00012898,2]
[401721303,1768345840736,-181.421,0.000129,2]
[401721304,1768345840746,-300.0,0.00012901,2]
[401721316,1768345840888,-300.0,0.00012901,2]
[401721318,1768345840898,-300.0,0.00012901,2]
[401721320,1768345840909,-300.0,0.00012901,2]
[401721322,1768345840918,-300.0,0.00012901,2]
[401721324,1768345840928,-300.0,0.00012901,2]
[401721326,1768345840937,-300.0,0.00012901,2]
[401721328,1768345840946,-300.0,0.00012901,2]
[401721330,1768345840956,-300.0,0.00012901,2]
[401721332,1768345840965,-300.0,0.00012901,2]
[401721334,1768345840975,-300.0,0.00012901,2]
[401721336,1768345840985,-300.0,0.00012901,2]
[401721338,1768345840995,-300.0,0.00012901,2]
[401721340,1768345841007,-300.0,0.00012901,2]
[401721342,1768345841016,-300.0,0.00012901,2]
[401721344,1768345841025,-27154.49461936,0.00013007,2]
[401721346,1768345841034,-600.0,0.00013158,2]
[401721348,1768345841043,-296.80273822,0.00013163,2]
[401721349,1768345841052,-500.0,0.00013163,2]
[401721351,1768345841062,-500.0,0.00013163,2]
[401721353,1768345841071,-500.0,0.00013163,2]
[401721355,1768345841082,-500.0,0.00013163,2]
[401721358,1768345841091,-500.0,0.00013163,2]
[401721360,1768345841100,-500.0,0.00013163,2]
[401721361,1768345841109,-500.0,0.00013163,2]
[401721363,1768345841118,-500.0,0.00013163,2]
[401721365,1768345841127,-500.0,0.00013163,2]
[401721367,1768345841137,-500.0,0.00013163,2]
[401721370,1768345841146,-500.0,0.00013163,2]
[401721371,1768345841156,-439.83541016,0.00013163,2]
[401721373,1768345841164,-500.0,0.00013163,2]
[401721375,1768345841173,-500.0,0.00013163,2]
[401721377,1768345841183,-500.0,0.00013163,2]
[401721379,1768345841191,-500.0,0.00013163,2]
[401721381,1768345841200,-496.47127165,0.00013165,2]
[401721383,1768345841210,-790.15234407,0.00013165,2]
[401721386,1768345841222,-1209.84765593,0.00013165,2]
[401721388,1768345841231,-2000.0,0.00013165,2]
[401721390,1768345841240,-168.3888056,0.00013165,2]
[401721392,1768345841249,-250.0,0.00013165,2]
[401721394,1768345841258,-174.61919141,0.00013165,2]
[401721396,1768345841267,-250.0,0.00013165,2]
[401721398,1768345841276,-151.0,0.00013165,2]
[401721400,1768345841285,-181.08010149,0.00013165,2]
[401721402,1768345841294,-151.0,0.00013165,2]
[401721404,1768345841303,-250.0,0.00013165,2]
[401721406,1768345841312,-187.78006525,0.00013165,2]
[401721408,1768345841321,-151.0,0.00013165,2]
[401721409,1768345841330,-228.13183625,0.00013165,2]
[401721411,1768345841339,-250.0,0.00013165,2]
[401721413,1768345841349,-151.0,0.00013165,2]
[401721415,1768345841357,-250.0,0.00013165,2]
[401721417,1768345841366,-151.0,0.00013165,2]
[401721419,1768345841375,-250.0,0.00013165,2]
[401721421,1768345841384,-250.0,0.00013165,2]
[401721423,1768345841393,-12545.15234407,0.00013173,2]
[401721425,1768345841405,-387.66890692,0.00013173,2]
[401721922,1768345846267,-8017.10092882,0.00013173,2]
[401722131,1768345848353,-4131.12882622,0.00013173,2]
[401722133,1768345848366,-1330.89894074,0.00013173,2]
[401722135,1768345848378,-1046.32681666,0.00013173,2]
[401723783,1768346157709,-300.0,0.00012394,2]
[401723784,1768346404113,377.94,5e-05,2]
[401723785,1768346404627,377.94,5.5e-05,2]
[401723786,1768346405054,377.94,6e-05,2]
[401723787,1768346405570,377.94,6.5e-05,2]
[401723788,1768346406087,377.94,7.1e-05,2]
[401723789,1768346406491,377.94,7.6e-05,2]
[401723790,1768346406894,377.94,8.1e-05,2]
[401723791,1768346407418,377.94,8.6e-05,2]
[401723792,1768346407927,377.94,9.1e-05,2]
[401723793,1768346408360,377.94,9.6e-05,2]
[401723794,1768346408852,377.94,0.000101,2]
[401723795,1768346409294,377.94,0.000106,2]
[401723796,1768346410076,377.94,0.000112,2]
[401723797,1768346410495,377.94,0.000117,2]
[401723798,1768346410923,377.94,0.000122,2]
[401723799,1768346416363,-377.94,0.000127,2]
[401723800,1768346418733,999.0,0.00012063,2]
[401723894,1768347032263,-1593.33651744,0.00012989,2]
[401723896,1768347032273,-604.0,0.00012999,2]
[401723898,1768347032281,-429.38311039,0.00013,2]
[401723900,1768347032290,-300.0,0.00013,2]
[401723902,1768347032300,-1200.0,0.00013,2]
[401723904,1768347032309,-207.76191675,0.00013072,2]
[401723906,1768347032320,-500.0,0.00013072,2]
[401723908,1768347032329,-500.0,0.00013072,2]
[401723910,1768347032338,-500.0,0.00013072,2]
[401723912,1768347032347,-500.0,0.00013072,2]
[401723914,1768347032357,-500.0,0.00013072,2]
[401723916,1768347032367,-500.0,0.00013072,2]
[401723918,1768347032376,-500.0,0.00013072,2]
[401723920,1768347032385,-500.0,0.00013072,2]
[401723922,1768347032395,-307.13482827,0.00013072,2]
[401723924,1768347032404,-500.0,0.00013072,2]
[401723926,1768347032414,-250.0,0.00013072,2]
[401723928,1768347032424,-371.49757454,0.00013072,2]
[401723930,1768347032433,-417.91283446,0.00013072,2]
[401723932,1768347032443,-363.8041313,0.00013072,2]
[401723934,1768347032452,-362.24317932,0.00013072,2]
[401723936,1768347032461,-500.0,0.00013072,2]
[401723938,1768347032471,-500.0,0.00013072,2]
[401723940,1768347032480,-375.25022324,0.00013072,2]
[401723942,1768347032489,-500.0,0.00013072,2]
[401723944,1768347032499,-500.0,0.00013072,2]
[401723946,1768347032508,-500.0,0.00013072,2]
[401723948,1768347032518,-500.0,0.00013072,2]
[401723950,1768347032528,-500.0,0.00013072,2]
[401723951,1768347032537,-500.0,0.00013072,2]
[401723953,1768347032547,-500.0,0.00013072,2]
[401723955,1768347032556,-330.2695752,0.00013072,2]
[401723956,1768347032566,-500.0,0.00013072,2]
[401723958,1768347032575,-500.0,0.00013072,2]
[401723960,1768347032585,-500.0,0.00013072,2]
[401723962,1768347032594,-500.0,0.00013072,2]
[401723963,1768347032603,-500.0,0.00013072,2]
[401723964,1768347032613,-500.0,0.00013072,2]
[401723965,1768347032624,-500.0,0.00013072,2]
[401723966,1768347032634,-500.0,0.00013072,2]
[401723967,1768347032644,-44817.93788324,0.00013073,2]
[401723968,1768347032655,-1492.40530775,0.00013073,2]
[401723969,1768347032666,-39959.19988385,0.00013073,2]
[401724003,1768347038900,-8067.45984086,0.00013073,2]
[401724004,1768347039010,-3349.68883386,0.00013073,2]
[401724644,1768347046594,-778.77913156,0.00013073,2]
[401724646,1768347046606,-5509.92181514,0.00013073,2]
[401724649,1768347046616,-907.21964252,0.00013073,2]
[401724652,1768347046637,-205.95699297,0.00013073,2]
[401725262,1768347319204,158.0,0.00030137,120]
[401725263,1768347327071,158.0,0.00030137,120]
[401725264,1768347334844,158.0,0.00030137,120]
[401725265,1768347342346,158.0,0.00030137,120]
[401725266,1768347354642,158.0,0.00030137,120]
[401725267,1768347362779,158.0,0.00030137,120]
[401725268,1768347370301,158.0,0.00030137,120]
[401725269,1768347378909,158.0,0.00030137,120]
[401725270,1768347396548,158.0,0.00030137,120]
[401725271,1768347415733,159.53152799,0.00030137,120]
[401725277,1768347811260,10000.01,0.00012061,2]
[401725278,1768347811324,10000.01,0.00012061,2]
[401725279,1768347811386,10000.01,0.00012061,2]
[401725280,1768347811450,10000.01,0.00012061,2]
[401725281,1768347811513,10000.01,0.00012061,2]
[401725282,1768347811574,10000.01,0.00012061,2]
[401725283,1768347811640,10000.01,0.00012061,2]
[401725284,1768347811702,9196.892363,0.00012061,2]
[401725288,1768347849922,-2570.331837,0.00012722,2]
[401725307,1768348221505,158.0,0.00030137,120]
[401725308,1768348231496,158.0,0.00030137,120]
[401725329,1768348232382,-500.0,0.00012871,2]
[401725330,1768348232392,-300.0,0.00012871,2]
[401725331,1768348232402,-96128.7947985,0.00012872,2]
[401725332,1768348232431,-16588.59999995,0.00012872,2]
[401725333,1768348232442,-2898.06756959,0.00012872,2]
[401725363,1768348238562,-446.94503474,0.00012871,2]
[401725365,1768348238574,-53.05496526,0.00012871,2]
[401725367,1768348238583,-500.0,0.00012871,2]
[401725369,1768348238593,-500.0,0.00012871,2]
[401725371,1768348238603,-500.0,0.00012871,2]
[401725373,1768348238612,-33.15698701,0.00012871,2]
[401725375,1768348238624,-466.84301299,0.00012871,2]
[401725377,1768348238633,-500.0,0.00012871,2]
[401725379,1768348238642,-500.0,0.00012871,2]
[401725380,1768348238651,-461.82425464,0.00012871,2]
[401725382,1768348238662,-423.33350124,0.00012871,2]
[401725384,1768348238675,-76.66649876,0.00012871,2]
[401725386,1768348238684,-499.99,0.00012871,2]
[401725387,1768348238694,-454.92567717,0.00012871,2]
[401725388,1768348238703,-428.65171728,0.00012871,2]
[401725389,1768348238712,-34184.33076583,0.00012872,2]
[401725390,1768348238723,-3006.72,0.00012872,2]
[401725391,1768348238735,-2739.5793,0.00012872,2]
[401725392,1768348238747,-920.0098551,0.00012872,2]
[401725393,1768348238759,-1076.576635,0.00012872,2]
[401725394,1768348238769,-3073.821,0.00012872,2]
[401725409,1768348239274,158.0,0.00030137,120]
[401725544,1768348240743,-928.00674222,0.00012872,2]
[401725837,1768348244352,158.0,0.00030137,120]
[401726098,1768348246757,-1422.31461751,0.00012872,2]
[401726245,1768348248310,-2033.13085028,0.00012872,2]
[401727940,1768348321612,-1088.67660066,0.00012772,2]
[401727941,1768348418025,158.0,0.00030137,120]
[401727942,1768348425643,158.0,0.00030137,120]
[401727943,1768348434063,158.0,0.00030137,120]
[401727944,1768348464491,158.89,0.00030136,120]
[401727945,1768348467989,158.0,0.00030137,120]
[401727946,1768348475327,158.0,0.00030137,120]
[401727947,1768348493258,162.763792,0.00030137,120]
[401727948,1768348651818,870.94128052,0.00012772,2]
[401727949,1768348657252,100000.0,0.0003013,120]
[401727950,1768348796123,500.0,0.0003013,120]
[401727951,1768348830273,3029.07334931,0.00012674,2]
[401727953,1768349070393,259.50283472,0.00024468,120]
[401727954,1768349070688,182.39505418,0.00024468,120]
[401727955,1768349125532,3922.64216885,0.00012772,2]
[401727956,1768349125609,10000.01,0.00012772,2]
[401727957,1768349125679,10000.01,0.00012772,2]
[401727958,1768349125751,10000.01,0.00012772,2]
[401727959,1768349125818,10000.01,0.00012772,2]
[401727960,1768349125889,10000.01,0.00012772,2]
[401727961,1768349125968,10000.01,0.00012772,2]
[401727962,1768349126037,10000.01,0.00012772,2]
[401727963,1768349126101,10000.01,0.00012772,2]
[401727964,1768349126171,10000.01,0.00012772,2]
[401727967,1768349162043,-1295.92385726,0.00012772,2]
[401727968,1768349165065,-300.0,0.00012771,2]
[401727969,1768349165253,-9400.01,0.00012772,2]
[401727970,1768349167867,-10000.01,0.00012772,2]
[401727971,1768349170929,-10000.01,0.00012772,2]
[401727974,1768349257145,158.0,0.00030137,120]
[401727975,1768349264836,158.0,0.00030137,120]